bitfinex/quotes_ETHUSD_20250414
["timestamp","ask_amount","ask_price","bid_price","bid_amount"]
[1744651065918,6.12824,1631.8,1631.5,10.96236]
[1744651066320,6.12753,1632.0,1631.6,0.82928175]
[1744651066524,6.12773,1632.0,1631.7,6.12847]
[1744651066685,6.12788,1631.9,1631.6,6.89685]
[1744651066888,6.12788,1631.9,1631.7,0.689685]
[1744651068310,6.12856,1631.8,1631.6,0.768]
[1744651068527,6.12857,1631.7,1631.6,0.768]
[1744651068730,6.12856,1631.8,1631.6,4.768]
[1744651068911,6.12788,1631.9,1631.6,10.89665]
[1744651069112,6.12745,1632.0,1631.6,0.768]
[1744651069445,6.12838,1631.8,1631.6,0.768]
[1744651069586,6.12838,1631.8,1631.6,1.45772]
[1744651070236,12.25684,1631.8,1631.6,0.768]
[1744651070444,6.12857,1631.7,1631.6,0.768]
[1744651070602,12.25674,1631.8,1631.6,0.768]
[1744651070943,6.12778,1632.0,1631.6,6.12863]
[1744651071096,6.12719,1632.1,1631.7,7.00647111]
[1744651071291,6.12792,1631.9,1631.7,0.8169]
[1744651071511,6.12709,1632.1,1631.4,13.63778]
[1744651071512,6.12846,1631.8,1631.4,13.63778]
[1744651071729,12.25693,1631.8,1631.4,13.08778]
[1744651072637,6.12865,1631.7,1631.4,6.95818]
[1744651072798,12.25751,1631.7,1631.4,6.95818]
[1744651073213,6.12895,1631.6,1631.5,0.695818]
[1744651073548,6.12932,1631.5,1631.4,0.8287]
[1744651073754,6.12932,1631.5,1631.4,4.8287]
[1744651074043,6.12932,1631.5,1631.4,4.0]
[1744651075144,6.13052,1631.2,1630.9,13.15468151]
[1744651075346,6.12979,1631.4,1631.1,6.13073]
[1744651075546,12.25965,1631.4,1631.1,6.13073]
[1744651076328,6.12993,1631.4,1631.2,0.7773]
[1744651077044,6.12901,1631.6,1631.2,6.90765]
[1744651077350,6.12863,1631.7,1631.4,6.12959]
[1744651077514,12.25737,1631.7,1631.5,0.7773]
[1744651077714,6.12895,1631.6,1631.5,0.7773]
[1744651077923,6.12932,1631.5,1631.2,13.18241]
[1744651078111,6.12932,1631.5,1631.3,0.8121]
[1744651078429,6.12934,1631.5,1631.3,0.8121]
[1744651078631,6.12934,1631.5,1631.3,2.211546]
[1744651079004,12.2581,1631.6,1631.3,2.211546]
[1744651079425,6.12899,1631.6,1631.3,2.211546]
[1744651079718,6.12944,1631.5,1631.3,2.211546]
[1744651079923,6.12899,1631.6,1631.3,2.211546]
[1744651080123,12.2574,1631.7,1631.3,14.471576]
[1744651080427,12.25737,1631.7,1631.3,14.471456]
[1744651080613,6.12825,1631.8,1631.5,6.12917]
[1744651080950,0.7333,1632.0,1631.3,14.471476]
[1744651080951,6.12875,1631.7,1631.3,14.471476]
[1744651081126,12.25765,1631.7,1631.3,14.471476]
[1744651081320,6.12799,1631.9,1631.6,6.12892]
[1744651081538,6.12799,1631.9,1631.5,6.12913]
[1744651081732,12.25658,1631.8,1631.5,6.12913]
[1744651081941,6.12822,1631.8,1631.5,6.12913]
[1744651082135,0.7333,1632.0,1631.6,6.94246]
[1744651082334,6.12769,1632.0,1631.7,6.12847]
[1744651083051,6.12769,1632.0,1631.7,12.25693]
[1744651083349,6.12769,1632.0,1631.7,6.12846]
[1744651083834,6.1276,1632.0,1631.7,6.12846]
[1744651084619,0.7333,1632.2,1631.6,7.8657]
[1744651084620,1.1994915,1632.2,1631.6,7.8657]
[1744651084850,6.12831,1631.8,1631.6,7.052]
[1744651085148,6.12838,1631.8,1631.6,7.052]
[1744651085350,0.7333,1631.9,1631.4,6.9504]
[1744651085541,6.12873,1631.7,1631.4,6.9504]
[1744651085738,6.12901,1631.6,1631.3,7.529406]
[1744651085939,0.7333,1631.9,1631.2,7.01252567]
[1744651086149,6.12839,1631.8,1631.5,6.12929]
[1744651086455,6.86119,1631.9,1631.6,6.12892]
[1744651086636,6.12782,1631.9,1631.6,6.12895]
[1744651086843,6.87329,1632.1,1631.5,6.95633]
[1744651087154,19.12801,1632.1,1631.8,6.12819]
[1744651087358,13.00058,1632.1,1631.7,6.12846]
[1744651087516,6.12746,1632.0,1631.7,6.12846]
[1744651088133,12.25509,1632.0,1631.7,6.12846]
[1744651088440,6.12787,1631.9,1631.6,0.695633]
[1744651088649,6.12833,1631.8,1631.5,14.00831]
[1744651088820,6.12833,1631.8,1631.5,16.022106]
[1744651089022,6.12833,1631.8,1631.5,9.892896]
[1744651089360,6.12833,1631.8,1631.5,0.8271]
[1744651089541,12.25588,1631.9,1631.5,6.95632]
[1744651089741,12.25522,1632.0,1631.6,6.12877]
[1744651090255,6.12745,1632.0,1631.5,6.95632]
[1744651090434,12.25686,1631.8,1631.5,0.8271]
[1744651090635,6.12834,1631.8,1631.5,6.95635]
[1744651090833,6.12792,1631.9,1631.5,6.95635]
[1744651090834,6.12792,1631.9,1631.5,0.8271]
[1744651091158,6.12821,1631.8,1631.5,7.74422]
[1744651091460,6.12857,1631.7,1631.4,13.18164]
[1744651091763,6.12857,1631.7,1631.4,6.12957]
[1744651091928,12.25749,1631.7,1631.4,6.12957]
[1744651092129,6.12857,1631.7,1631.4,6.12957]
[1744651092324,12.25729,1631.7,1631.4,6.12957]
[1744651092922,6.12857,1631.7,1631.4,6.12957]
[1744651093140,12.2574,1631.7,1631.4,6.12957]
[1744651093360,6.12857,1631.7,1631.4,6.12957]
[1744651093677,0.7333,1631.8,1631.3,0.7814]
[1744651093834,6.12894,1631.7,1631.2,7.052]
[1744651094036,6.12944,1631.5,1631.3,4.0]
[1744651094261,13.00152,1631.8,1631.3,4.0]
[1744651094262,6.87329,1631.8,1631.3,4.0]
[1744651094476,6.12897,1631.6,1631.3,6.12991]
[1744651094659,6.12891,1631.7,1631.3,6.13008]
[1744651094850,19.12994,1631.8,1631.4,6.12959]
[1744651095049,12.26846,1631.8,1631.5,6.12917]
[1744651095362,18.39681,1631.8,1631.5,6.12917]
[1744651095560,6.12952,1631.5,1631.2,13.96473]
[1744651095864,12.99086,1631.7,1631.3,6.12995]
[1744651096066,12.99068,1631.7,1631.4,6.12958]
[1744651096231,6.86198,1631.7,1631.3,6.12998]
[1744651096434,6.12916,1631.6,1631.2,21.491433]
[1744651096759,6.86205,1631.7,1631.4,6.12955]
[1744651097065,6.86203,1631.7,1631.4,6.12955]
[1744651097271,6.12906,1631.6,1631.3,12.26]
[1744651097482,6.12906,1631.6,1631.3,14.4090773]
[1744651098072,6.86203,1631.7,1631.4,6.1297]
[1744651098593,12.99074,1631.7,1631.4,6.12958]
[1744651098803,6.86201,1631.7,1631.3,8.2790973]
[1744651099011,6.12898,1631.6,1631.2,21.491453]
[1744651099645,6.12898,1631.6,1631.3,6.13001]
[1744651099851,6.12898,1631.6,1631.3,12.25997]
[1744651100052,12.99067,1631.7,1631.4,6.1296]
[1744651100254,6.12906,1631.6,1631.3,6.12996]
[1744651100454,6.12906,1631.6,1631.3,7.6660333]
[1744651100657,6.13008,1631.3,1631.0,6.95884]
[1744651100882,6.13008,1631.3,1631.1,4.0]
[1744651101084,12.99304,1631.4,1631.1,10.13072]
[1744651101601,6.12945,1631.5,1631.2,6.13041]
[1744651101756,6.86233,1631.6,1631.2,4.0]
[1744651101757,0.7333,1631.6,1631.2,4.0]
[1744651101991,0.7333,1631.6,1631.4,6.12948]
[1744651102273,0.7333,1632.0,1631.5,6.9621]
[1744651102593,6.12782,1631.9,1631.3,13.04764]
[1744651102794,6.1284,1631.8,1631.5,6.12925]
[1744651102991,6.12787,1631.9,1631.6,6.741855]
[1744651103180,12.25597,1631.9,1631.6,6.741855]
[1744651103490,12.2673,1632.1,1631.7,9.71576892]
[1744651103675,18.39472,1632.1,1631.7,15.84433892]
[1744651103869,18.39455,1632.1,1631.8,1.58443389]
[1744651104075,6.12751,1632.0,1631.8,1.58443389]
[1744651104490,6.12751,1632.0,1631.7,6.12847]
[1744651104695,6.12751,1632.0,1631.7,12.25694]
[1744651104987,6.12751,1632.0,1631.7,6.12844]
[1744651105393,12.25438,1632.1,1631.7,6.12844]
[1744651105596,6.12748,1632.0,1631.7,6.12844]
[1744651105896,6.12717,1632.1,1631.8,0.612844]
[1744651106090,6.12745,1632.0,1631.8,0.612844]
[1744651106593,6.12707,1632.1,1631.6,14.603685]
[1744651106790,6.12817,1631.9,1631.6,1.436825]
[1744651107090,6.12839,1631.8,1631.6,0.612925]
[1744651107471,6.86119,1631.9,1631.6,0.612925]
[1744651107674,0.7333,1631.9,1631.6,0.612925]
[1744651107866,6.12875,1631.7,1631.4,6.95817]
[1744651108060,6.12875,1631.7,1631.5,4.0]
[1744651108397,6.12827,1631.8,1631.5,4.0]
[1744651108566,0.7333,1631.9,1631.6,6.12889]
[1744651108766,6.86123,1631.9,1631.6,7.141709]
[1744651108981,12.98924,1631.9,1631.6,7.141709]
[1744651109183,6.86123,1631.9,1631.6,7.141709]
[1744651109390,12.2559,1631.9,1631.6,7.141709]
[1744651109590,6.12793,1631.9,1631.6,7.141709]
[1744651109763,12.25598,1631.9,1631.6,7.141709]
[1744651109964,12.25598,1631.9,1631.6,6.12882]
[1744651110286,6.12793,1631.9,1631.6,6.12882]
[1744651110692,6.12793,1631.9,1631.6,12.25764]
[1744651110994,6.13999,1632.0,1631.9,6.12782]
[1744651111200,6.12683,1632.2,1631.9,6.90282]
[1744651111668,12.25369,1632.2,1631.9,6.90282]
[1744651112075,6.12727,1632.1,1631.9,0.775]
[1744651112264,12.2547,1632.1,1631.9,0.775]
[1744651112462,6.12727,1632.1,1631.9,0.775]
[1744651112663,6.12679,1632.2,1631.9,6.90256]
[1744651112889,12.25372,1632.2,1631.9,6.90256]
[1744651113088,6.12679,1632.2,1631.9,13.03026]
[1744651113904,6.12679,1632.2,1631.9,6.90256]
[1744651114100,6.12679,1632.2,1631.9,6.90273]
[1744651114296,12.25294,1632.3,1632.0,6.12729]
[1744651114517,6.12686,1632.2,1631.9,6.90275]
[1744651114702,12.25384,1632.2,1631.9,6.90275]
[1744651114878,6.12686,1632.2,1631.9,6.90275]
[1744651115078,12.25386,1632.2,1631.9,0.775]
[1744651115281,7.46991912,1632.3,1631.9,0.775]
[1744651115603,6.12688,1632.2,1631.9,0.775]
[1744651115810,12.25392,1632.2,1631.9,0.775]
[1744651116104,6.12688,1632.2,1631.9,0.775]
[1744651116266,12.25377,1632.2,1631.9,6.9027]
[1744651116472,7.46982912,1632.3,1632.0,6.12742]
[1744651116692,6.12689,1632.2,1631.9,0.775]
[1744651116887,12.25392,1632.2,1631.9,0.775]
[1744651117094,13.59625912,1632.3,1632.0,6.12735]
[1744651117499,6.12637,1632.3,1632.0,6.12732]
[1744651117703,6.12606,1632.4,1632.1,6.12701]
[1744651117914,6.8586,1632.6,1632.2,6.9185]
[1744651118070,6.1253,1632.6,1632.3,6.12615]
[1744651118408,6.1253,1632.6,1632.3,12.25236]
[1744651118581,6.12492,1632.7,1632.4,1.225236]
[1744651118913,6.12523,1632.6,1632.3,12.25236]
[1744651119109,6.12523,1632.6,1632.3,6.12615]
[1744651119321,12.25062,1632.6,1632.2,6.91847]
[1744651119515,6.12598,1632.4,1632.2,0.7918]
[1744651119677,12.25186,1632.5,1632.2,6.91836]
[1744651120000,12.25186,1632.5,1632.2,9.28533789]
[1744651120307,6.12574,1632.5,1632.2,9.28533789]
[1744651120506,12.25152,1632.5,1632.2,9.28533789]
[1744651120930,6.126,1632.4,1632.2,3.15877789]
[1744651121102,6.12651,1632.3,1632.1,7.036]
[1744651121589,6.1267,1632.2,1632.1,7.036]
[1744651121789,6.1267,1632.2,1632.0,0.7997]
[1744651121988,6.12651,1632.3,1632.0,6.92713]
[1744651122296,6.12676,1632.2,1632.0,0.7997]
[1744651122494,12.25282,1632.3,1632.0,0.7997]
[1744651122706,6.12634,1632.3,1632.0,6.92701]
[1744651122902,6.12601,1632.4,1632.1,6.12694]
[1744651123103,6.12573,1632.5,1632.2,6.12656]
[1744651123397,6.12573,1632.5,1632.2,12.25313]
[1744651124004,6.12573,1632.5,1632.2,12.25315]
[1744651124205,6.12617,1632.4,1632.2,1.58406489]
[1744651124409,12.25231,1632.4,1632.0,14.450719]
[1744651124729,6.12637,1632.3,1632.0,8.323379]
[1744651125030,6.12637,1632.3,1632.0,8.323359]
[1744651125522,6.12602,1632.4,1632.0,8.323349]
[1744651125724,6.12638,1632.3,1632.0,8.323349]
[1744651125889,6.12638,1632.3,1632.1,0.8323349]
[1744651126324,12.25138,1632.5,1632.1,6.9591749]
[1744651126630,6.12633,1632.3,1632.1,0.8323349]
[1744651126995,12.25293,1632.3,1632.1,0.8323349]
[1744651127222,6.12633,1632.3,1632.1,0.8323349]
[1744651127526,6.12684,1632.2,1631.9,19.2914]
[1744651127694,6.12639,1632.3,1632.0,6.12744]
[1744651128026,12.25284,1632.3,1632.0,6.12744]
[1744651128215,6.12639,1632.3,1632.0,6.12734]
[1744651128404,6.12639,1632.3,1632.0,13.571004]
[1744651129731,12.25285,1632.3,1632.0,7.443664]
[1744651131200,6.12639,1632.3,1632.0,7.443664]
[1744651131401,6.12605,1632.4,1632.1,6.88816]
[1744651131596,6.12605,1632.4,1632.1,0.7612]
[1744651131798,12.25288,1632.3,1632.1,0.7612]
[1744651132130,12.25289,1632.3,1632.1,1.5816874]
[1744651132426,12.25291,1632.3,1632.1,1.5816874]
[1744651132630,6.12604,1632.4,1632.1,1.5816874]
[1744651132832,6.12604,1632.4,1632.1,7.7086374]
[1744651132998,6.12604,1632.4,1632.1,13.8356074]
[1744651133333,12.25145,1632.5,1632.2,7.50999074]
[1744651133836,12.25138,1632.5,1632.2,7.51016074]
[1744651134128,6.12595,1632.4,1632.2,1.38356074]
[1744651134316,6.12648,1632.3,1632.1,1.5816874]
[1744651134516,12.25305,1632.3,1632.1,0.7612]
[1744651134832,12.25138,1632.5,1632.2,6.12661]
[1744651135034,6.12569,1632.5,1632.2,6.12661]
[1744651135240,0.7333,1632.6,1632.3,6.1262]
[1744651135420,6.12526,1632.6,1632.4,0.61262]
[1744651135598,12.25076,1632.6,1632.4,1.37792]
[1744651136003,12.25065,1632.6,1632.4,1.37792]
[1744651136415,0.7333,1632.8,1632.4,1.37792]
[1744651136611,6.12398,1633.0,1632.6,0.8018]
[1744651136952,6.12296,1633.2,1632.8,6.12428]
[1744651137237,12.24683,1633.1,1632.9,1.374028]
[1744651137409,6.12333,1633.1,1632.8,13.0102]
[1744651137604,6.12333,1633.1,1632.8,6.88588]
[1744651137810,6.12304,1633.2,1632.8,6.88588]
[1744651138119,6.17228,1633.4,1633.0,6.12357]
[1744651138318,0.05,1633.4,1633.1,0.7723]
[1744651138541,0.05,1633.4,1633.1,6.89549]
[1744651138712,0.05,1633.4,1633.2,0.689549]
[1744651139107,0.05,1633.4,1633.2,12.935209]
[1744651139443,6.12257,1633.3,1633.2,0.689549]
[1744651139645,6.1725,1633.4,1633.2,7.021]
[1744651139839,6.12257,1633.3,1633.2,7.021]
[1744651140239,6.17236,1633.4,1633.2,7.021]
[1744651140740,6.12257,1633.3,1633.2,7.021]
[1744651141343,6.12257,1633.3,1633.1,0.7723]
[1744651141344,12.24544,1633.3,1633.1,0.7723]
[1744651141742,6.12294,1633.2,1633.1,0.7723]
[1744651142060,6.12294,1633.2,1632.9,17.51745892]
[1744651142247,6.12294,1633.2,1633.0,5.75174589]
[1744651142749,6.12332,1633.1,1633.0,5.75174589]
[1744651142955,6.12332,1633.1,1633.0,4.0]
[1744651143117,6.90562,1633.4,1633.0,4.0]
[1744651143330,6.17232,1633.4,1633.1,6.12327]
[1744651143509,6.17232,1633.4,1633.2,0.7905]
[1744651143712,0.05,1633.4,1633.2,8.22319812]
[1744651143913,0.05,1633.4,1633.3,6.12257]
[1744651144853,0.05,1633.4,1633.3,6.18378601]
[1744651145149,0.05,1633.4,1633.3,6.12257]
[1744651145652,0.05,1633.4,1633.2,15.24308812]
[1744651145952,0.05,1633.4,1633.3,1.52430881]
[1744651146314,0.05,1633.4,1633.3,7.70809781]
[1744651146629,0.05,1633.4,1633.3,12.06229673]
[1744651147126,0.05,1633.4,1633.3,16.06229673]
[1744651147325,0.05,1633.4,1633.3,20.015158]
[1744651149216,0.05,1633.4,1633.3,19.00107773]
[1744651149438,0.05,1633.4,1633.3,6.29100881]
[1744651149747,0.05,1633.4,1633.3,4.0]
[1744651150155,6.17219,1633.4,1633.3,4.0]
[1744651150337,0.05,1633.4,1633.2,1.30981812]
[1744651150543,6.17221,1633.4,1633.2,1.30981812]
[1744651151452,0.05,1633.4,1633.2,1.30981812]
[1744651151619,0.05,1633.4,1633.2,7.43270812]
[1744651151816,0.05,1633.4,1633.2,1.30981812]
[1744651152084,12.29484,1633.4,1633.2,1.30981812]
[1744651152236,0.7333,1633.3,1632.9,0.8008]
[1744651152430,6.12309,1633.2,1632.7,0.8095]
[1744651152658,6.12398,1633.0,1632.7,0.8095]
[1744651152958,6.12373,1633.0,1632.7,2.204655]
[1744651153122,6.12373,1633.0,1632.7,8.39047601]
[1744651153324,6.85587,1633.3,1632.7,2.204655]
[1744651153649,6.1241,1632.9,1632.7,2.204655]
[1744651153959,6.12386,1633.0,1632.7,2.204655]
[1744651154460,12.24777,1633.0,1632.7,2.204655]
[1744651154627,6.12386,1633.0,1632.7,2.204655]
[1744651154827,6.12386,1633.0,1632.7,8.329365]
[1744651155050,12.24779,1633.0,1632.8,0.8329365]
[1744651155258,6.12444,1632.8,1632.6,7.017]
[1744651155558,6.857,1633.0,1632.6,7.017]
[1744651155735,6.1237,1633.0,1632.6,13.14204]
[1744651155927,6.12475,1632.8,1632.6,7.017]
[1744651156129,6.12451,1632.8,1632.6,7.017]
[1744651156660,12.24915,1632.8,1632.6,7.017]
[1744651156859,6.12422,1632.9,1632.6,14.535126]
[1744651157047,0.7333,1633.2,1632.6,8.410066]
[1744651157254,12.24695,1633.1,1632.8,6.91976]
[1744651157769,6.1237,1633.0,1632.8,0.7954]
[1744651158531,12.97966,1633.2,1632.8,0.7954]
[1744651158755,12.97966,1633.2,1632.8,6.91964]
[1744651159063,12.97966,1633.2,1632.9,0.691964]
[1744651159767,6.12335,1633.1,1632.9,0.691964]
[1744651160155,6.12369,1633.0,1632.8,0.7954]
[1744651160531,12.24691,1633.1,1632.8,6.91983]
[1744651160732,12.24693,1633.1,1632.8,6.91983]
[1744651161050,6.12332,1633.1,1632.8,13.10540656]
[1744651161365,6.85635,1633.2,1632.9,1.31054066]
[1744651161551,6.12335,1633.1,1632.9,1.31054066]
[1744651161940,12.24684,1633.1,1632.9,1.31054066]
[1744651163264,6.12369,1633.0,1632.8,0.7954]
[1744651163564,6.12369,1633.0,1632.7,6.12467]
[1744651163862,6.12369,1633.0,1632.7,6.18590957]
[1744651164075,6.12342,1633.1,1632.7,6.18590957]
[1744651164254,6.12374,1633.0,1632.7,8.27722956]
[1744651164772,12.24768,1633.0,1632.7,8.27722956]
[1744651164930,6.12374,1633.0,1632.7,14.46318913]
[1744651165132,6.12374,1633.0,1632.7,8.27722956]
[1744651165550,12.24757,1633.0,1632.7,8.27722956]
[1744651165876,6.12482,1632.7,1632.6,7.017]
[1744651166549,6.85709,1633.0,1632.6,7.017]
[1744651166752,12.24764,1633.0,1632.7,6.12481]
[1744651166952,6.12379,1633.0,1632.7,6.12481]
[1744651167164,12.24764,1633.0,1632.7,6.12481]
[1744651167367,6.12408,1632.9,1632.6,13.14209]
[1744651167546,12.99626,1633.2,1632.6,8.331209]
[1744651167747,6.12431,1632.9,1632.6,13.14217]
[1744651167947,6.1238,1633.0,1632.6,13.14209]
[1744651168148,12.24837,1632.9,1632.6,13.14209]
[1744651168851,6.1241,1632.9,1632.6,13.14209]
[1744651169180,6.1241,1632.9,1632.6,13.14207]
[1744651169477,6.1241,1632.9,1632.6,15.068827]
[1744651169650,6.8563,1633.2,1632.6,8.943757]
[1744651169849,6.12458,1632.8,1632.6,7.017]
[1744651170287,6.12417,1632.9,1632.6,13.20342591]
[1744651170443,12.24848,1632.9,1632.6,13.14218]
[1744651170644,6.12386,1633.0,1632.7,6.94099]
[1744651170848,12.24773,1633.0,1632.7,6.94099]
[1744651171081,6.12386,1633.0,1632.7,0.8163]
[1744651171294,6.12411,1632.9,1632.7,0.8163]
[1744651172281,0.7333,1633.2,1632.7,2.88589138]
[1744651172482,12.24615,1633.2,1632.9,6.12399]
[1744651172648,6.12338,1633.1,1632.8,6.12426]
[1744651173171,6.12305,1633.2,1632.9,6.12405]
[1744651173580,6.9057,1633.4,1633.0,6.12342]
[1744651173755,0.05,1633.4,1633.1,6.735652]
[1744651173959,6.17231,1633.4,1633.1,6.735652]
[1744651174293,0.05,1633.4,1633.1,6.735582]
[1744651174607,12.29459,1633.4,1633.1,6.735552]
[1744651174774,0.05,1633.4,1633.2,6.12259]
[1744651174975,0.05,1633.4,1633.3,6.734829]
[1744651175174,0.05,1633.4,1633.3,7.533629]
[1744651175396,0.05,1633.4,1633.3,1.411059]
[1744651175566,0.05,1633.4,1633.3,7.533629]
[1744651175766,0.05,1633.4,1633.3,11.17524875]
[1744651176061,0.05,1633.4,1633.3,14.72524875]
[1744651176267,0.05,1633.4,1633.3,14.66403101]
[1744651176467,0.05,1633.4,1633.3,15.11340576]
[1744651179699,0.05,1633.4,1633.3,7.99146101]
[1744651179870,0.05,1633.4,1633.3,0.7988]
[1744651180303,0.05,1633.4,1633.3,6.92137]
[1744651180672,0.05,1633.4,1633.3,0.7988]
[1744651180868,0.05,1633.4,1633.3,6.92137]
[1744651181375,0.05,1633.4,1633.3,0.7988]
[1744651181575,0.05,1633.4,1633.3,5.466039]
[1744651181777,0.05,1633.4,1633.3,11.588609]
[1744651182910,0.05,1633.4,1633.3,11.64982423]
[1744651183205,0.05,1633.4,1633.3,15.99112624]
[1744651183514,0.05,1633.4,1633.3,15.92991101]
[1744651184013,0.05,1633.4,1633.3,12.349509]
[1744651185979,0.05,1633.4,1633.3,15.92991101]
[1744651186274,0.05,1633.4,1633.3,19.47991101]
[1744651190415,1e-05,1633.4,1633.3,19.47991101]
[1744651190713,6.11893,1634.3,1633.7,6.12097]
[1744651190714,0.7333,1634.1,1633.7,6.12097]
[1744651190886,6.12015,1634.0,1633.7,7.34521]
[1744651191086,6.12015,1634.0,1633.7,7.40641327]
[1744651191299,6.1205,1633.9,1633.7,1.22424]
[1744651191505,6.854,1633.8,1633.5,6.12164]
[1744651191706,6.854,1633.8,1633.5,12.24335]
[1744651192189,12.97486,1633.8,1633.5,6.12164]
[1744651192396,6.854,1633.8,1633.5,12.24335]
[1744651192595,12.97491,1633.8,1633.5,6.12164]
[1744651192890,6.854,1633.8,1633.5,12.24334]
[1744651193079,0.7333,1633.8,1633.6,6.12144]
[1744651193284,0.7333,1633.8,1633.6,12.30386634]
[1744651193615,12.97343,1634.0,1633.7,6.12106]
[1744651193811,6.85331,1634.0,1633.7,6.12106]
[1744651194016,0.7333,1634.0,1633.7,12.24193]
[1744651194312,12.97199,1634.2,1633.9,6.12032]
[1744651194482,6.11959,1634.1,1633.8,12.24106]
[1744651194678,6.11959,1634.1,1633.8,6.12036]
[1744651194903,6.11968,1634.1,1633.8,0.06120056]
[1744651195211,0.7333,1634.2,1634.0,6.11993]
[1744651195411,0.7333,1634.2,1633.9,12.24029]
[1744651195412,6.85264,1634.2,1633.9,12.24029]
[1744651195620,6.85264,1634.2,1633.9,6.12009]
[1744651196192,6.85264,1634.2,1633.9,6.18128466]
[1744651196708,6.85264,1634.2,1633.9,12.30149466]
[1744651196885,6.85264,1634.2,1633.9,13.96837633]
[1744651197082,0.7333,1634.2,1633.9,7.78697167]
[1744651197290,0.05,1634.4,1634.0,4.35730201]
[1744651197497,0.05,1634.4,1634.1,13.10622]
[1744651197700,6.16871,1634.4,1634.1,6.987]
[1744651197901,6.11894,1634.3,1634.1,6.987]
[1744651198217,12.23796,1634.3,1634.1,6.987]
[1744651198821,6.11894,1634.3,1634.1,6.987]
[1744651199019,12.23797,1634.3,1634.1,6.987]
[1744651199217,6.8525,1634.2,1634.1,6.987]
[1744651199591,6.8525,1634.2,1633.9,6.12027]
[1744651200099,12.97186,1634.2,1633.9,6.12027]
[1744651200294,0.7333,1634.2,1633.9,6.12018]
[1744651200499,6.9019,1634.4,1634.1,6.11933]
[1744651200819,6.90187,1634.4,1634.1,6.11933]
[1744651200988,13.02057,1634.4,1634.1,6.11933]
[1744651201317,12.23801,1634.3,1634.0,6.11988]
[1744651201723,6.11921,1634.2,1633.9,8.207828]
[1744651201922,6.11921,1634.2,1633.9,14.328048]
[1744651202125,6.11921,1634.2,1633.9,8.207708]
[1744651202420,12.23801,1634.3,1633.9,14.327908]
[1744651203350,12.23801,1634.3,1633.5,1.9634442]
[1744651203351,6.12054,1633.9,1633.5,2.7873442]
[1744651203558,0.7333,1633.8,1633.4,6.986]
[1744651203851,6.12124,1633.7,1633.4,13.93206]
[1744651203997,6.12124,1633.7,1633.4,6.986]
[1744651204198,6.12124,1633.7,1633.4,8.296841]
[1744651204499,12.97496,1633.8,1633.4,20.60243623]
[1744651204751,6.85408,1633.8,1633.5,6.12181]
[1744651205132,6.12112,1633.7,1633.4,14.419031]
[1744651205338,6.12112,1633.7,1633.4,8.296841]
[1744651205531,6.12112,1633.7,1633.4,6.986]
[1744651205904,12.24248,1633.7,1633.4,6.986]
[1744651206105,6.85512,1633.5,1633.4,6.986]
[1744651206399,0.7333,1633.7,1633.4,13.10806]
[1744651206602,12.26003,1634.0,1633.7,6.12104]
[1744651206801,12.26003,1634.0,1633.7,6.12096]
[1744651206802,6.12005,1634.0,1633.7,6.12096]
[1744651207056,6.85296,1634.1,1633.8,6.12063]
[1744651207351,12.24043,1634.0,1633.6,13.06836]
[1744651207653,12.24028,1634.0,1633.7,6.12107]
[1744651207807,12.24028,1634.0,1633.6,14.375196]
[1744651208529,6.12045,1633.9,1633.6,7.428216]
[1744651208912,6.12045,1633.9,1633.6,7.428136]
[1744651209133,0.7333,1634.1,1633.6,1.36804183]
[1744651209333,6.13999,1634.2,1633.9,6.12005]
[1744651209513,6.11972,1634.1,1633.8,6.12055]
[1744651209714,12.25929,1634.2,1633.8,6.12055]
[1744651210032,12.25929,1634.2,1633.9,6.1203]
[1744651210233,12.97132,1634.3,1633.9,6.12021]
[1744651210439,14.273452,1634.3,1633.9,6.12021]
[1744651210642,14.273452,1634.3,1634.0,6.11994]
[1744651211072,6.1193,1634.2,1633.9,6.12021]
[1744651211367,0.7333,1634.3,1633.9,0.06119759]
[1744651211673,0.05,1634.4,1634.2,6.11916]
[1744651212073,6.16863,1634.4,1634.1,6.11922]
[1744651212356,12.28737,1634.4,1634.0,13.06294]
[1744651212730,0.05,1634.4,1634.1,12.23872]
[1744651212964,0.05,1634.4,1634.2,6.11919]
[1744651213277,0.05,1634.4,1634.3,6.11882]
[1744651213434,0.05,1634.4,1634.2,13.06002055]
[1744651213632,0.05,1634.4,1634.2,6.94083055]
[1744651213829,0.05,1634.4,1634.2,13.05989055]
[1744651214028,0.05,1634.4,1634.3,6.11882]
[1744651214432,0.05,1634.4,1634.3,8.12338506]
[1744651215397,0.05,1634.4,1634.3,6.00456506]
[1744651215580,0.05,1634.4,1634.3,4.0]
[1744651216800,0.05,1634.4,1634.3,10.89782]
[1744651217098,0.05,1634.4,1634.3,10.9590015]
[1744651217473,0.05,1634.4,1634.3,14.5090015]
[1744651217680,0.05,1634.4,1634.3,14.44782]
[1744651217897,0.05,1634.4,1634.3,18.1730492]
[1744651218802,0.05,1634.4,1634.3,14.1730492]
[1744651219602,0.05,1634.4,1634.3,13.6230492]
[1744651221799,0.05,1634.4,1634.3,17.6230492]
[1744651222557,0.05,1634.4,1634.3,4.0]
[1744651223034,0.05,1634.4,1634.3,10.11882]
[1744651223398,0.05,1634.4,1634.3,13.76040357]
[1744651223595,0.05,1634.4,1634.3,17.46292201]